fUST/lending_fUST_20260130
["ID","MTS","AMOUNT","RATE_DAILY","PERIOD"]
[404059714,1769779227112,640.24385345,0.00034728,30]
[404059726,1769779228184,640.24385345,0.00034728,30]
[404059751,1769779230602,214.06305974,0.00034728,120]
[404059754,1769779230702,162.76515597,0.00034728,120]
[404059758,1769779230990,1287.5,0.00034728,30]
[404059760,1769779231095,748.50134434,0.00034728,120]
[404059763,1769779231204,214.06305974,0.00034728,120]
[404059765,1769779231305,162.76515597,0.00034728,120]
[404059770,1769779231691,214.06305974,0.00034728,120]
[404059772,1769779231804,748.50134434,0.00034728,120]
[404059775,1769779231913,162.76515597,0.00034728,120]
[404059778,1769779232088,250.0,0.00034728,30]
[404059780,1769779232180,250.0,0.00034728,30]
[404059783,1769779232400,162.76515597,0.00034728,120]
[404059786,1769779232508,748.50134434,0.00034728,120]
[404059789,1769779232681,748.50134434,0.00034728,120]
[404059791,1769779232769,162.76515597,0.00034728,120]
[404059793,1769779232855,250.0,0.00034728,30]
[404059795,1769779232948,250.0,0.00034728,30]
[404059798,1769779233149,162.76515597,0.00034728,120]
[404059801,1769779233273,748.50134434,0.00034728,120]
[404059803,1769779233367,250.0,0.00034728,30]
[404059808,1769779233788,748.50134434,0.00034728,120]
[404059811,1769779233921,250.0,0.00034728,30]
[404059813,1769779234028,250.0,0.00034728,30]
[404059817,1769779234294,748.50134434,0.00034728,120]
[404059820,1769779234478,523.0,0.00034728,30]
[404059824,1769779234658,250.0,0.00034728,30]
[404059828,1769779234957,1008.16,0.00034728,120]
[404059830,1769779235070,748.50134434,0.00034728,120]
[404059832,1769779235175,1008.16,0.00034728,120]
[404059835,1769779235321,1008.16,0.00034728,120]
[404059836,1769779235436,250.0,0.00034728,30]
[404059837,1769779235553,748.50134434,0.00034728,120]
[404059840,1769779235739,1008.16,0.00034728,120]
[404059842,1769779235853,748.50134434,0.00034728,120]
[404059845,1769779235965,1008.16,0.00034728,120]
[404059847,1769779236069,250.0,0.00034728,30]
[404059849,1769779236172,1008.16,0.00034728,120]
[404059852,1769779236321,1008.16,0.00034728,120]
[404059854,1769779236429,748.50134434,0.00034728,120]
[404059856,1769779236565,1008.16,0.00034728,120]
[404059860,1769779236797,1008.16,0.00034728,120]
[404059862,1769779236904,748.50134434,0.00034728,120]
[404059865,1769779237079,250.0,0.00034728,30]
[404059868,1769779237183,1008.16,0.00034728,120]
[404059870,1769779237334,748.50134434,0.00034728,120]
[404059873,1769779237438,151.0,0.00034728,30]
[404059875,1769779237577,1008.16,0.00034728,120]
[404059877,1769779237689,1008.16,0.00034728,120]
[404059880,1769779237784,250.0,0.00034728,30]
[404059882,1769779237890,748.50134434,0.00034728,120]
[404059884,1769779237998,1008.16,0.00034728,120]
[404059886,1769779238108,156.587,0.00034728,30]
[404059889,1769779238205,1008.16,0.00034728,120]
[404059892,1769779238431,1008.16,0.00034728,120]
[404059895,1769779238558,250.0,0.00034728,30]
[404059897,1769779238672,1008.16,0.00034728,120]
[404059901,1769779238890,1008.16,0.00034728,120]
[404059903,1769779238986,748.50134434,0.00034728,120]
[404059905,1769779239132,1008.16,0.00034728,120]
[404059908,1769779239233,162.380719,0.00034728,30]
[404059910,1769779239348,748.50134434,0.00034728,120]
[404059912,1769779239465,1008.16,0.00034728,120]
[404059915,1769779239627,1008.16,0.00034728,120]
[404059919,1769779239821,748.50134434,0.00034728,120]
[404059921,1769779239910,1008.16,0.00034728,120]
[404059923,1769779240015,168.3888056,0.00034728,30]
[404059925,1769779240116,1008.16,0.00034728,120]
[404059929,1769779240383,1008.16,0.00034728,120]
[404059932,1769779240495,748.50134434,0.00034728,120]
[404059934,1769779240619,174.61919141,0.00034728,30]
[404059937,1769779240776,748.50134434,0.00034728,120]
[404059940,1769779240919,1008.23667305,0.00034728,120]
[404059944,1769779241214,181.08010149,0.00034728,30]
[404059946,1769779241318,748.50134434,0.00034728,120]
[404059953,1769779241739,748.50134434,0.00034728,120]
[404059955,1769779241840,187.78006525,0.00034728,30]
[404059960,1769779242258,748.50134434,0.00034728,120]
[404059964,1769779242508,194.72792766,0.00034728,30]
[404059966,1769779242749,748.50134434,0.00034728,120]
[404059971,1769779243080,201.93286099,0.00034728,30]
[404059975,1769779243335,748.50134434,0.00034728,120]
[404059981,1769779243829,748.50134434,0.00034728,120]
[404059983,1769779243934,174.34186986,0.00034728,30]
[404059988,1769779244249,209.40437684,0.00034728,30]
[404059990,1769779244366,748.50134434,0.00034728,120]
[404059997,1769779244841,748.50134434,0.00034728,120]
[404059999,1769779244948,217.15233878,0.00034728,30]
[404060005,1769779245363,748.50134434,0.00034728,120]
[404060008,1769779245502,225.18697532,0.00034728,30]
[404060012,1769779245763,748.50134434,0.00034728,120]
[404060018,1769779246261,748.50134434,0.00034728,120]
[404060028,1769779246975,233.51889341,0.00034728,30]
[404060035,1769779247577,242.15909246,0.00034728,30]
[404060043,1769779248172,251.11897888,0.00034728,30]
[404060057,1769779249343,260.4103811,0.00034728,30]
[404060061,1769779249606,151.0,0.00034728,30]
[404060063,1769779249947,270.0455652,0.00034728,30]
[404060064,1769779250073,510.86,0.00034728,30]
[404060067,1769779250214,151.0,0.00034728,30]
[404060069,1769779250330,510.86,0.00034728,30]
[404060073,1769779250556,280.03725112,0.00034728,30]
[404060077,1769779250776,510.86,0.00034728,30]
[404060079,1769779250865,510.86,0.00034728,30]
[404060081,1769779250955,151.0,0.00034728,30]
[404060083,1769779251050,510.86,0.00034728,30]
[404060087,1769779251284,510.86,0.00034728,30]
[404060090,1769779251488,151.0,0.00034728,30]
[404060092,1769779251595,510.86,0.00034728,30]
[404060096,1769779251806,510.86,0.00034728,30]
[404060099,1769779252040,510.86,0.00034728,30]
[404060102,1769779252145,151.0,0.00034728,30]
[404060105,1769779252316,510.86,0.00034728,30]
[404060109,1769779252626,396.94822,0.00034728,120]
[404060111,1769779252746,510.86,0.00034728,30]
[404060115,1769779252986,510.86,0.00034728,30]
[404060118,1769779253244,151.0,0.00034728,30]
[404060120,1769779253376,510.86,0.00034728,30]
[404060123,1769779253519,510.86,0.00034728,30]
[404060126,1769779253722,510.86,0.00034728,30]
[404060128,1769779253871,151.0,0.00034728,30]
[404060130,1769779254027,510.86,0.00034728,30]
[404060133,1769779254243,510.86,0.00034728,30]
[404060136,1769779254484,510.86,0.00034728,30]
[404060138,1769779254640,151.0,0.00034728,30]
[404060140,1769779254815,510.86,0.00034728,30]
[404060143,1769779254991,510.86,0.00034728,30]
[404060145,1769779255190,151.0,0.00034728,30]
[404060148,1769779255353,510.86,0.00034728,30]
[404060150,1769779255529,510.86,0.00034728,30]
[404060153,1769779255784,510.86,0.00034728,30]
[404060155,1769779255933,151.0,0.00034728,30]
[404060157,1769779256073,510.94986568,0.00034728,30]
[404060161,1769779256465,151.0,0.00034728,30]
[404060166,1769779257075,151.0,0.00034728,30]
[404060172,1769779257759,151.0,0.00034728,30]
[404060202,1769779261963,151.0,0.00034728,30]
[404060206,1769779262274,596.60800396,0.00034728,120]
[404060209,1769779262451,843.0,0.00034728,30]
[404060211,1769779262578,151.0,0.00034728,30]
[404060219,1769779263284,151.0,0.00034728,30]
[404060226,1769779263821,151.0,0.00034728,30]
[404060232,1769779264249,500.0,0.00034728,120]
[404060236,1769779264542,536.81040719,0.00034728,120]
[404060253,1769779265915,1000000.0,0.00034728,30]
[404060266,1769779267027,151.0,0.00034728,30]
[404060342,1769779273928,900.54002351,0.00034728,30]
[404060427,1769779281721,312.9073,0.00034728,120]
[404060429,1769779281821,312.9073,0.00034728,120]
[404060433,1769779282145,273.66098219,0.00034728,30]
[404060438,1769779282556,500.0,0.00034728,30]
[404060441,1769779282926,515.57962596,0.00034728,30]
[404060461,1769779284913,336.27426329,0.00034728,120]
[404060588,1769779296354,155.42804008,0.00034728,120]
[404060590,1769779296482,1023.24539976,0.00034728,30]
[404060693,1769779306506,500.0,0.00034728,120]
[404060697,1769779306764,500.0,0.00034728,120]
[404060701,1769779306986,500.0,0.00034728,120]
[404060704,1769779307256,500.0,0.00034728,120]
[404060708,1769779307489,500.0,0.00034728,120]
[404060711,1769779307715,500.0,0.00034728,120]
[404060715,1769779307950,500.0,0.00034728,120]
[404060719,1769779308187,500.0,0.00034728,120]
[404060722,1769779308441,500.0,0.00034728,120]
[404060726,1769779308664,500.0,0.00034728,120]
[404060730,1769779308889,500.0,0.00034728,120]
[404060734,1769779309146,500.0,0.00034728,120]
[404060737,1769779309388,500.0,0.00034728,120]
[404060741,1769779309630,500.0,0.00034728,120]
[404060744,1769779309857,205.14561665,0.00034728,120]
[404060791,1769779314249,221.16835368,0.00034728,120]
[404060887,1769779322862,500.0,0.00034728,120]
[404060891,1769779323127,422.38958377,0.00034728,120]
[404060992,1769779332269,163.81803673,0.00034728,120]
[404061002,1769779333035,643.73891296,0.00034728,120]
[404061099,1769779341962,194.04696058,0.00034728,120]
[404061161,1769779347840,500.0,0.00034728,30]
[404061191,1769779350683,584.95475604,0.00034728,120]
[404061193,1769779350815,366.70615363,0.00034728,120]
[404061199,1769779351284,366.70615363,0.00034728,120]
[404061201,1769779351419,524.8610206,0.00034728,30]
[404061205,1769779351641,500.0,0.00034728,120]
[404061207,1769779351775,584.95475604,0.00034728,120]
[404061209,1769779351911,366.70615363,0.00034728,120]
[404061212,1769779352049,388.3596512,0.00034728,120]
[404061214,1769779352238,584.95475604,0.00034728,120]
[404061217,1769779352410,452.80545885,0.00034728,30]
[404061220,1769779352587,366.70615363,0.00034728,120]
[404061222,1769779352779,584.95475604,0.00034728,120]
[404061224,1769779352931,366.70615363,0.00034728,120]
[404061227,1769779353194,584.95475604,0.00034728,120]
[404061230,1769779353453,366.70615363,0.00034728,120]
[404061233,1769779353749,584.95475604,0.00034728,120]
[404061241,1769779354630,366.70615363,0.00034728,120]
[404061243,1769779354846,584.95475604,0.00034728,120]
[404061246,1769779355054,366.70615363,0.00034728,120]
[404061249,1769779355433,584.95475604,0.00034728,120]
[404061253,1769779355841,584.95475604,0.00034728,120]
[404061255,1769779356033,387.11058432,0.00034728,120]
[404061259,1769779356363,584.95475604,0.00034728,120]
[404061261,1769779356571,500.0,0.00034728,120]
[404061264,1769779356822,584.95475604,0.00034728,120]
[404061267,1769779356997,267.85245599,0.00034728,120]
[404061271,1769779357342,584.95475604,0.00034728,120]
[404061279,1769779358134,584.95475604,0.00034728,120]
[404061285,1769779358615,584.95475604,0.00034728,120]
[404061291,1769779359121,584.95475604,0.00034728,120]
[404061425,1769779371908,500.0,0.00034728,120]
[404061429,1769779372173,500.0,0.00034728,120]
[404061433,1769779372460,500.0,0.00034728,120]
[404061437,1769779372705,500.0,0.00034728,120]
[404061441,1769779372944,500.0,0.00034728,120]
[404061447,1769779373364,500.0,0.00034728,120]
[404061449,1769779373474,500.0,0.00034728,120]
[404061453,1769779373659,500.0,0.00034728,120]
[404061457,1769779373926,500.0,0.00034728,120]
[404061460,1769779374170,500.0,0.00034728,120]
[404061465,1769779374434,500.0,0.00034728,120]
[404061468,1769779374662,500.0,0.00034728,120]
[404061472,1769779374903,500.0,0.00034728,120]
[404061473,1769779375130,500.0,0.00034728,120]
[404061477,1769779375415,500.0,0.00034728,120]
[404061482,1769779375703,500.0,0.00034728,120]
[404061484,1769779375859,500.0,0.00034728,120]
[404061489,1769779376160,500.0,0.00034728,120]
[404061493,1769779376381,500.0,0.00034728,120]
[404061496,1769779376618,559.1414429,0.00034728,120]
[404061766,1769779400706,505.09883341,0.00034728,120]
[404061811,1769779404675,500.0,0.00034728,120]
[404061815,1769779404921,310.36036217,0.00034728,120]
[404061925,1769779414611,240.7217059,0.00034728,120]
[404061927,1769779414712,579.08348881,0.00034728,120]
[404061966,1769779418292,333.08504789,0.00034728,120]
[404061988,1769779420065,500.0,0.00034728,120]
[404061992,1769779420315,500.0,0.00034728,120]
[404061996,1769779420545,500.0,0.00034728,120]
[404062000,1769779420819,500.0,0.00034728,120]
[404062004,1769779421072,500.0,0.00034728,120]
[404062008,1769779421319,500.0,0.00034728,120]
[404062012,1769779421555,500.0,0.00034728,120]
[404062016,1769779421814,500.0,0.00034728,120]
[404062021,1769779422072,500.0,0.00034728,120]
[404062025,1769779422310,500.0,0.00034728,120]
[404062028,1769779422558,500.0,0.00034728,120]
[404062032,1769779422792,500.0,0.00034728,120]
[404062037,1769779423094,500.0,0.00034728,120]
[404062042,1769779423342,562.48580579,0.00034728,120]
[404062229,1769779440235,156.10274126,0.00034728,120]
[404062342,1769779452157,163.81803672,0.00034728,120]
[404062359,1769779453643,500.0,0.00034728,120]
[404062363,1769779453874,165.76907044,0.00034728,120]
[404062365,1769779453912,500.0,0.00034728,120]
[404062370,1769779454267,500.0,0.00034728,120]
[404062373,1769779454500,500.0,0.00034728,120]
[404062378,1769779454763,500.0,0.00034728,120]
[404062383,1769779455113,500.0,0.00034728,120]
[404062384,1769779455150,156.55992066,0.00034728,120]
[404062388,1769779455347,500.0,0.00034728,120]
[404062391,1769779455586,500.0,0.00034728,120]
[404062395,1769779455812,500.0,0.00034728,120]
[404062399,1769779456058,500.0,0.00034728,120]
[404062408,1769779456848,518.92397544,0.00034728,120]
[404062430,1769779458918,240.43895629,0.00034728,120]
[404062461,1769779461618,257.86325441,0.00034728,120]
[404062492,1769779464255,345.96919325,0.00034728,120]
[404062497,1769779464588,164.546602,0.00034728,120]
[404062503,1769779465017,164.546602,0.00034728,120]
[404062508,1769779465453,164.546602,0.00034728,120]
[404062514,1769779465873,164.546602,0.00034728,120]
[404062518,1769779466301,164.546602,0.00034728,120]
[404062520,1769779466482,159.15798791,0.00034728,120]
[404062523,1769779466731,164.546602,0.00034728,120]
[404062529,1769779467151,164.546602,0.00034728,120]
[404062535,1769779467571,164.546602,0.00034728,120]
[404062541,1769779467994,164.546602,0.00034728,120]
[404062545,1769779468265,287.61315799,0.00034728,120]
[404062547,1769779468410,164.546602,0.00034728,120]
[404062549,1769779468469,261.74368918,0.00034728,120]
[404062572,1769779470288,500.0,0.00034728,120]
[404062575,1769779470518,500.0,0.00034728,120]
[404062579,1769779470740,196.27934786,0.00034728,120]
[404062581,1769779470859,204.83267943,0.00034728,120]
[404062688,1769779480232,227.45503821,0.00034728,120]
[404062730,1769779483956,500.0,0.00034728,120]
[404062733,1769779484191,500.0,0.00034728,120]
[404062737,1769779484433,500.0,0.00034728,120]
[404062741,1769779484671,500.0,0.00034728,120]
[404062744,1769779484904,500.0,0.00034728,120]
[404062748,1769779485147,500.0,0.00034728,120]
[404062751,1769779485368,500.0,0.00034728,120]
[404062755,1769779485589,500.0,0.00034728,120]
[404062758,1769779485809,500.0,0.00034728,120]
[404062763,1769779486084,500.0,0.00034728,120]
[404062766,1769779486322,500.0,0.00034728,120]
[404062770,1769779486580,500.0,0.00034728,120]
[404062774,1769779486828,500.0,0.00034728,120]
[404062778,1769779487100,500.0,0.00034728,120]
[404062782,1769779487361,500.0,0.00034728,120]
[404062785,1769779487599,500.0,0.00034728,120]
[404062789,1769779487835,500.0,0.00034728,120]
[404062790,1769779488063,305.38669135,0.00034728,120]
[404062791,1769779488107,500.0,0.00034728,120]
[404062797,1769779488532,500.0,0.00034728,120]
[404062799,1769779488596,500.0,0.00034728,120]
[404062802,1769779488756,500.0,0.00034728,120]
[404062806,1769779489026,500.0,0.00034728,120]
[404062809,1769779489258,444.83936626,0.00034728,120]
[404062844,1769779492169,500.0,0.00034728,120]
[404062848,1769779492429,500.0,0.00034728,120]
[404062851,1769779492655,475.0,0.00029772,120]
[404062853,1769779492693,232.50265593,0.00034728,120]
[404062857,1769779492970,475.0,0.00029772,120]
[404062862,1769779493280,475.0,0.00029772,120]
[404062867,1769779493579,475.0,0.00029772,120]
[404062871,1769779493910,475.0,0.00029772,120]
[404062876,1769779494213,475.0,0.00029772,120]
[404062881,1769779494605,475.0,0.00029772,120]
[404062887,1769779495066,475.0,0.00029772,120]
[404062889,1769779495375,475.0,0.00029772,120]
[404062893,1769779495711,475.0,0.00029772,120]
[404062898,1769779496035,475.0,0.00029772,120]
[404062902,1769779496269,552.41499053,0.00034728,120]
[404062903,1769779496347,475.0,0.00029772,120]
[404062908,1769779496692,475.0,0.00029772,120]
[404062912,1769779497020,475.0,0.00029772,120]
[404062921,1769779497724,475.0,0.00029772,120]
[404062926,1769779498043,475.0,0.00029772,120]
[404062931,1769779498386,475.0,0.00029772,120]
[404062935,1769779498729,475.0,0.00029772,120]
[404062940,1769779499043,475.0,0.00029772,120]
[404062945,1769779499379,475.0,0.00029772,120]
[404062953,1769779500064,475.0,0.00029772,120]
[404062957,1769779500365,475.0,0.00029772,120]
[404062967,1769779501151,237.46515967,0.00034728,120]
[404063018,1769779506395,500.0,0.00034728,60]
[404063022,1769779506642,203.42112422,0.00034728,60]
[404063044,1769779508777,500.0,0.00034728,120]
[404063057,1769779509863,337.93244384,0.00034728,120]
[404063067,1769779510688,217.42349504,0.00034728,120]
[404063079,1769779512084,579.39302429,0.00034728,120]
[404063090,1769779513041,159.1622166,0.00034728,30]
[404063106,1769779514637,273.92635379,0.00034728,120]
[404063122,1769779516187,402.50895585,0.00034728,120]
[404063129,1769779516761,453.79981413,0.00034728,30]
[404063143,1769779518164,361.15071361,0.00034728,120]
[404063166,1769779520506,157.4102359,0.00034728,30]
[404063184,1769779522241,160.0,0.00034728,30]
[404063192,1769779522854,160.0,0.00034728,30]
[404063194,1769779522990,250.47435819,0.00034728,120]
[404063200,1769779523467,160.0,0.00034728,30]
[404063218,1769779525180,352.21295644,0.00034728,120]
[404063258,1769779529376,486.00893662,0.00034728,30]
[404063293,1769779532668,151.18844685,0.00034728,30]
[404063350,1769779538543,370.67548925,0.00034728,120]
[404063391,1769779542553,419.21285395,0.00034728,120]
[404063575,1769779561338,628.674,0.00029772,120]
[404063583,1769779561978,475.0,0.00029772,120]
[404063587,1769779562288,475.0,0.00029772,120]
[404063591,1769779562594,475.0,0.00029772,120]
[404063596,1769779562948,475.0,0.00029772,120]
[404063600,1769779563237,475.0,0.00029772,120]
[404063605,1769779563546,475.0,0.00029772,120]
[404063609,1769779563871,475.0,0.00029772,120]
[404063613,1769779564145,902.42,0.00034728,30]
[404063614,1769779564193,475.0,0.00029772,120]
[404063617,1769779564380,902.42,0.00034728,30]
[404063620,1769779564510,475.0,0.00029772,120]
[404063623,1769779564697,902.42,0.00034728,30]
[404063625,1769779564850,475.0,0.00029772,120]
[404063627,1769779564938,902.42,0.00034728,30]
[404063631,1769779565174,475.0,0.00029772,120]
[404063632,1769779565217,902.42,0.00034728,30]
[404063636,1769779565497,902.42,0.00034728,30]
[404063640,1769779565740,902.42,0.00034728,30]
[404063643,1769779565956,475.0,0.00029772,120]
[404063645,1769779566056,902.42,0.00034728,30]
[404063649,1769779566295,475.0,0.00029772,120]
[404063650,1769779566333,902.42,0.00034728,30]
[404063653,1769779566532,902.42,0.00034728,30]
[404063655,1769779566599,475.0,0.00029772,120]
[404063658,1769779566810,902.42,0.00034728,30]
[404063660,1769779566941,475.0,0.00029772,120]
[404063662,1769779567049,902.42,0.00034728,30]
[404063665,1769779567234,475.0,0.00029772,120]
[404063667,1769779567282,902.42,0.00034728,30]
[404063670,1769779567509,902.42,0.00034728,30]
[404063673,1769779567685,475.0,0.00029772,120]
[404063675,1769779567773,902.42,0.00034728,30]
[404063678,1769779568011,902.42,0.00034728,30]
[404063682,1769779568258,902.42,0.00034728,30]
[404063683,1769779568498,902.42,0.00034728,30]
[404063685,1769779568761,902.42,0.00034728,30]
[404063689,1769779569000,902.42,0.00034728,30]
[404063692,1769779569262,902.42,0.00034728,30]
[404063696,1769779569504,902.42,0.00034728,30]
[404063700,1769779569830,902.42,0.00034728,30]
[404063704,1769779570061,902.56060911,0.00034728,30]
[404063708,1769779570414,348.15554006,0.00034728,120]
[404063733,1769779572684,168.94330851,0.00034728,120]
[404063743,1769779573624,525.50149982,0.00034728,120]
[404063792,1769779578620,500.0,0.00034728,120]
[404063795,1769779578859,500.0,0.00034728,120]
[404063799,1769779579123,500.0,0.00034728,120]
[404063803,1769779579392,500.0,0.00034728,120]
[404063806,1769779579616,500.0,0.00034728,120]
[404063808,1769779579741,500.0,0.00034728,120]
[404063810,1769779579853,500.0,0.00034728,120]
[404063812,1769779579971,500.0,0.00034728,120]
[404063816,1769779580205,500.0,0.00034728,120]
[404063821,1769779580613,500.0,0.00034728,120]
[404063824,1769779580856,500.0,0.00034728,120]
[404063826,1769779580895,500.0,0.00034728,120]
[404063829,1769779581132,500.0,0.00034728,120]
[404063831,1769779581170,279.49182687,0.00034728,120]
[404063834,1769779581396,500.0,0.00034728,120]
[404063838,1769779581645,586.55567397,0.00034728,120]
[404063856,1769779583467,500.0,0.00034728,120]
[404063859,1769779583716,500.0,0.00034728,120]
[404063862,1769779584005,500.0,0.00034728,120]
[404063866,1769779584251,500.0,0.00034728,120]
[404063869,1769779584544,500.0,0.00034728,120]
[404063872,1769779584801,500.0,0.00034728,120]
[404063875,1769779585041,500.0,0.00034728,120]
[404063878,1769779585289,500.0,0.00034728,120]
[404063881,1769779585539,500.0,0.00034728,120]
[404063885,1769779585889,178.58329124,0.00034728,120]
[404063887,1769779586016,500.0,0.00034728,120]
[404063891,1769779586253,500.0,0.00034728,120]
[404063906,1769779587960,500.0,0.00034728,120]
[404063909,1769779588260,355.32185761,0.00034728,120]
[404064129,1769779610551,169.9199,0.0001087,120]
[404064131,1769779610708,169.9199,0.00011036,120]
[404064134,1769779610864,169.9199,0.00011091,120]
[404064272,1769779624758,802299.79428888,0.00034728,30]
[404064308,1769779628359,1000.0,0.00029772,120]
[404064311,1769779628663,1000.0,0.00029772,120]
[404064315,1769779629012,1000.0,0.00029772,120]
[404064323,1769779629906,475.0,0.00029772,120]
[404064540,1769779653121,-156.98986193,0.0001,2]
[404064622,1769779661589,1182.64636393,0.0002738,120]
[404064713,1769779670483,1003.51337347,0.00030037,120]
[404065019,1769779714103,155.96456319,0.000295,120]
[404065020,1769779718801,294.41656451,0.0002849,120]
[404065022,1769779732643,1849.76,0.0003,120]
[404065024,1769779762696,3000.0,0.00030137,120]
[404065056,1769779807884,-383.49,9e-05,2]
[404065057,1769779823282,-383.49,9.1e-05,2]
[404065183,1769779837997,-383.49,9.8e-05,2]
[404065185,1769779838006,-2769.12249885,9.9e-05,2]
[404065201,1769779838167,-572.71456598,9.9e-05,2]
[404065571,1769779845447,-1658.16293517,9.9e-05,2]
[404065572,1769779845457,-250.97013807,0.0001,2]
[404065573,1769779845467,-68.75909088,0.000101,2]
[404065574,1769779845506,-81.24090912,0.000101,2]
[404065576,1769779845517,-219.79493401,0.000104,2]
[404065595,1769780271100,702.61,0.00030137,120]
[404065596,1769780274313,1651.13,0.00030136,120]
[404065597,1769780302611,1003.58,0.00030137,120]
[404065602,1769780418526,-366.6,9e-05,2]
[404065603,1769780418558,-366.6,9e-05,2]
[404065604,1769780418592,-546.0,9e-05,2]
[404065613,1769780782140,200.0,0.00030137,120]
[404065620,1769780847126,-1211.69196003,9.262e-05,2]
[404065621,1769780847148,-150.0,9.451e-05,2]
[404065622,1769780847170,-366.6,9.6e-05,2]
[404065623,1769780847192,-366.6,9.6e-05,2]
[404065624,1769780847213,-188.16506599,0.000104,2]
[404065625,1769780847235,-319.55793718,0.000108,2]
[404065627,1769781003237,344.19,9e-05,2]
[404065628,1769781003875,344.19,9e-05,2]
[404065629,1769781004358,344.19,9e-05,2]
[404065630,1769781009079,-344.19,9.1e-05,2]
[404065631,1769781009108,-344.19,9.1e-05,2]
[404065632,1769781009132,-229.4264115,9.1e-05,2]
[404065633,1769781020609,-114.7635885,9.1e-05,2]
[404065634,1769781021545,200.0,0.00030137,120]
[404065650,1769781032125,-344.19,9.2e-05,2]
[404065652,1769781032135,-344.19,9.2e-05,2]
[404065654,1769781032145,-344.19,9.3e-05,2]
[404065656,1769781032155,-88.40206282,0.000108,2]
[404065658,1769781032164,-572.0,0.000108,2]
[404065660,1769781032174,-177.0,0.00011451,2]
[404065662,1769781032183,-1200.0,0.00013272,2]
[404065664,1769781032193,-500.0,0.00013273,2]
[404065666,1769781032202,-500.0,0.00013273,2]
[404065668,1769781032212,-500.0,0.00013273,2]
[404065670,1769781032221,-204.0,0.00013451,2]
[404065672,1769781032230,-303.02799168,0.00013673,2]
[404065674,1769781032239,-154.32366031,0.00013699,2]
[404065676,1769781032249,-502.75778254,0.00013699,2]
[404065678,1769781032259,-300.0,0.00013819,2]
[404065680,1769781032268,-300.0,0.0001382,2]
[404065682,1769781032277,-300.0,0.0001382,2]
[404065684,1769781032287,-300.0,0.0001382,2]
[404065686,1769781032296,-1000.0,0.00013821,2]
[404065688,1769781032305,-1000.0,0.00013821,2]
[404065690,1769781032314,-1000.0,0.00013821,2]
[404065692,1769781032326,-1000.0,0.00013858,2]
[404065693,1769781032336,-1500.0,0.00014368,2]